{"text_format":"1","workbook":"xlsx","n_sheets":1,"sheets":["прил. 7 8-е число"],"not_rendered":{"charts":0,"images":0,"macros":0,"external_links":0,"defined_names":0,"comments":0,"pivot_tables":0},"unopened":[],"bounds":{"document_bytes":16777216,"sheet_cells":100000,"rows_first":2000,"rows_last":500,"rows_between":2000,"halvings":0,"cell_chars":16384,"cell_head_chars":4096},"cells_cut":0,"cells_raw":0,"read":"whole","date_system":"1900"}

{"sheet":"прил. 7 8-е число","index":0,"n_rows":34,"n_cols":9,"rows_kept":34,"cut":false,"hidden":false,"merged":[[3,0,3,7],[4,1,4,2],[6,0,7,0],[6,1,7,1],[6,2,7,2],[6,3,7,3],[6,4,7,4],[6,7,7,7],[6,5,6,6],[33,0,33,1],[6,8,7,8],[9,0,9,1],[10,0,10,1],[12,0,12,1],[30,0,30,8],[31,0,31,8],[11,7,11,8],[32,0,32,8]]}
[null,null,null,null,null,null,null,"Приложение к письму "]
[null,null,null,null,null,null,null,"от   10.01.2017 г. № 12"]
[]
["Анализ исполнения доходной части бюджета сельского поселения Лямина"]
[null,"по состоянию на ___01.01.2017 г.__________"]
[null,null,null,null,"руб.коп."]
["Код бюджетной классификации","Наименование показателя","План на год (уточненный) ","План                         1 квартал, полугодие,           9 месяцев","Фактическое исполнение","Процент исполнения",null,"Причина отклонений                               (фактич.исполнения от плана на год)","Причина отклонений                                                    (фактич.исполнения от плана 1 квартал, полугодие, 9 месяцев)"]
[null,null,null,null,null,"к году","к 1 квартал, полугодие, 9 месяцев"]
[1,2,3,4,5,"гр.6=гр.5/гр.3","гр.7=гр.5/гр.4",8,9]
["НАЛОГОВЫЕ И НЕНАЛОГОВЫЕ ДОХОДЫ",null,{"$f":"C11+C13","v":579453.5},{"$f":"D12+D24","v":579453.5},{"$f":"E11+E13","v":579853.5},{"$f":"E10/C10*100","v":100.0690305606921},{"$f":"E10/D10*100","v":100.0690305606921}]
["НАЛОГОВЫЕ ДОХОДЫ",null,{"$f":"C12","v":10250},{"$f":"D12","v":10250},10650,{"$f":"E11/C11*100","v":103.90243902439025},{"$f":"E11/D11*100","v":103.90243902439025}]
["650 1 08 04020 01 0000 110","Государственная пошлина за совершение нотариальных действий должностными лицами органов местного самоуправления, уполномоченными в соответствии с законодательными актами Российской Федерации на совершение нотариальных действий",10250,10250,10650,{"$f":"E12/C12*100","v":103.90243902439025},{"$f":"E12/D12*100","v":103.90243902439025},"Поступления по данному виду доходов зависят от спроса населения на нотариальные услуги"]
["НЕНАЛОГОВЫЕ ДОХОДЫ",null,{"$f":"C24","v":569203.5},{"$f":"D24","v":569203.5},569203.5,{"$f":"E13/C13*100","v":100},{"$f":"E13/D13*100","v":100}]
["650 1 11 05035 10 0000 120",null,"-","-",null,{"$f":"E14/C14","v":{"$error":"#VALUE!"}},{"$f":"E14/D14","v":{"$error":"#VALUE!"}}]
["650 1 11 09045 10 0000 120",null,"-","-",null,{"$error":"#VALUE!"},{"$error":"#VALUE!"}]
["650 1 13 01995 10 0000 130",null,"-","-",null,{"$error":"#VALUE!"},{"$error":"#VALUE!"}]
["650 1 13 02995 10 0000 130",null,"-","-",null,{"$error":"#VALUE!"},{"$error":"#VALUE!"}]
["650 1 14 02052 10 0000 410",null,"-","-",null,{"$error":"#VALUE!"},{"$error":"#VALUE!"}]
["650 1 14 02052 10 0000 440",null,"-","-",null,{"$error":"#VALUE!"},{"$error":"#VALUE!"}]
["650 1 14 02053 10 0000 410",null,"-","-",null,{"$error":"#VALUE!"},{"$error":"#VALUE!"}]
["070 1 14 06013 10 0000 430",null,"-","-",null,{"$error":"#VALUE!"},{"$error":"#VALUE!"}]
["000 1 16 00000 00 0000 000",null,"-","-",null,{"$error":"#VALUE!"},{"$error":"#VALUE!"}]
["…",null,"-","-",null,{"$error":"#VALUE!"},{"$error":"#VALUE!"}]
["650 1 13 02995 10 0000 130","Прочие доходы от компенсации затрат бюджетов сельских поселений",569203.5,569203.5,569203.5,{"$f":"E24/C24*100","v":100},{"$f":"E24/D24*100","v":100},"Произошло взыскание через судебных приставов, по исполнительному листу  серия АС № 006162920 от 12.03.2014 года, от ИП Казанчук Н.Е., в связи с признанием судом сделок недействительными; Возврат излишне уплаченных страховых взносов на обязательное соц.страхование на случай временной нетрудоспособности и в связи с материнством; возврат ошибочно перечисленных средств по платежному поручению№ 671 от 20.0.92016 года в сумме 437 859,43руб."]
["000 2 00 00000 00 0000 000","БЕЗВОЗМЕЗДНЫЕ ПОСТУПЛЕНИЯ",{"$f":"C26+C27+C28","v":616580.54},{"$f":"D26+D27+D28","v":616580.54},{"$f":"E26+E27+E28","v":425075.54000000004},{"$f":"E25/C25*100","v":68.94079725578105},{"$f":"E25/D25*100","v":68.94079725578105},"Х","Х"]
["650 2 07 05030 10 0000 180","Прочие безвозмездные поступления в бюджеты сельских поселений",391505,391505,200000,51.084915901457194,51.084915901457194,"По распоряжению от 08.12.2016 г. № 1441-рп департамента финансов Тюменской области денежные средства были выделены в конце года. Финансирование по выделенным денежным средствам в 2016 году не поступило. ","Х"]
["650 2 18 05010 10 0000 151","Доходы бюджетов сельских поселений от возврата остатков субсидий, субвенций и иных межбюджетных трансфертов, имеющих целевое назначение, прошлых лет из бюджетов муниципальных районов",753075.54,753075.54,753075.54,100,100,"Х","Х"]
["650 2 19 05000 10 0000 151","Возврат остатков субсидий, субвенций и иных межбюджетных трансфертов, имеющих целевое назначение, прошлых лет из бюджетов сельских поселений",-528000,-528000,-528000,100,100,"Возвращены остатки субсидий, субвенций и иных межбюджетных трансфертов, имеющих целевое назначение, 2015 года из бюджета сельского поселения Лямина в бюджет Сургутского района","Х"]
["ИТОГО ДОХОДОВ",null,{"$f":"C10+C25","v":1196034.04},{"$f":"D10+D25","v":1196034.04},{"$f":"E10+E25","v":1004929.04},84.021775835075729,84.021775835075729]
[]
["Примечание:  1.Причины отклонения к плану на год указываются по тем видам доходов, исполнение по которым к плановым назначениям менее 20%, 45%, 70%, 95% и более 30%, 55%, 80%, 105%;"]
["                          2.Причины отклонения к квартальному плану указываются по тем видам доходов, исполнение по которым к плановым назначениям менее 95% и более 105%;\n             "]
["                          3. НДФЛ и земельный налог не детализировать"]
["                          4.Форму заполнять в рублях с копейками."]